[Event "Titled Tuesday Blitz October 18 Late 2022"]
[White "Wieczorek, Oskar"]
[Black "Pranav, V"]
[WhiteFideId "1133950"]
[BlackFideId "25060783"]
[WhiteElo "2404"]
[BlackElo "2430"]
[Result "0-1"]
[Round "03"]
[TimeControl "180+1"]
[Date "2022.10.18"]
[WhiteClock "0:00:02"]
[BlackClock "0:00:04"]

1. e4 {[%clk 0:03:00]}  c5 {[%clk 0:02:58]} 2. Nf3 {[%clk 0:02:59]}  Nc6 {[%clk 0:02:58]} 3. b4 {[%clk 0:03:00]}  Nxb4 {[%clk 0:02:53]} 4. c3 {[%clk 0:02:59]}  Nc6 {[%clk 0:02:53]} 5. d4 {[%clk 0:03:00]}  cxd4 {[%clk 0:02:54]} 6. cxd4 {[%clk 0:03:00]}  e5 {[%clk 0:02:48]} 7. d5 {[%clk 0:02:39]}  Nce7 {[%clk 0:02:44]} 8. Nxe5 {[%clk 0:02:31]}  Ng6 {[%clk 0:02:44]} 9. Nc4 {[%clk 0:01:52]}  Bb4+ {[%clk 0:02:27]} 10. Bd2 {[%clk 0:01:52]}  Bc5 {[%clk 0:02:26]} 11. Nc3 {[%clk 0:01:43]}  d6 {[%clk 0:02:21]} 12. Na4 {[%clk 0:01:29]}  Nf6 {[%clk 0:02:20]} 13. Nxc5 {[%clk 0:01:28]}  dxc5 {[%clk 0:02:21]} 14. Qa4+ {[%clk 0:01:07]}  Bd7 {[%clk 0:02:21]} 15. Qc2 {[%clk 0:01:04]}  O-O {[%clk 0:02:20]} 16. Be2 {[%clk 0:01:01]}  Re8 {[%clk 0:02:11]} 17. Nd6 {[%clk 0:00:55]}  Ba4 {[%clk 0:02:03]} 18. Qxa4 {[%clk 0:00:55]}  Qxd6 {[%clk 0:02:03]} 19. f3 {[%clk 0:00:56]}  Qe5 {[%clk 0:01:50]} 20. O-O {[%clk 0:00:46]}  Nxd5 {[%clk 0:01:49]} 21. exd5 {[%clk 0:00:46]}  Qxe2 {[%clk 0:01:49]} 22. Rfe1 {[%clk 0:00:29]}  b5 {[%clk 0:01:09]} 23. Rxe2 {[%clk 0:00:29]}  bxa4 {[%clk 0:01:09]} 24. Rxe8+ {[%clk 0:00:30]}  Rxe8 {[%clk 0:01:10]} 25. Rc1 {[%clk 0:00:30]}  Rc8 {[%clk 0:00:42]} 26. d6 {[%clk 0:00:27]}  Nf8 {[%clk 0:00:34]} 27. Rc4 {[%clk 0:00:15]}  Rc6 {[%clk 0:00:34]} 28. Rxa4 {[%clk 0:00:09]}  a6 {[%clk 0:00:34]} 29. Be3 {[%clk 0:00:10]}  Nd7 {[%clk 0:00:30]} 30. Bf4 {[%clk 0:00:08]}  f5 {[%clk 0:00:25]} 31. h4 {[%clk 0:00:08]}  Kf7 {[%clk 0:00:25]} 32. Ra3 {[%clk 0:00:07]}  Nf6 {[%clk 0:00:24]} 33. Rd3 {[%clk 0:00:07]}  c4 {[%clk 0:00:24]} 34. Rd1 {[%clk 0:00:07]}  Rc8 {[%clk 0:00:18]} 35. d7 {[%clk 0:00:04]}  Rd8 {[%clk 0:00:17]} 36. Rd4 {[%clk 0:00:03]}  c3 {[%clk 0:00:17]} 37. Rc4 {[%clk 0:00:03]}  Nd5 {[%clk 0:00:11]} 38. Be5 {[%clk 0:00:03]}  Rxd7 {[%clk 0:00:10]} 39. Bxc3 {[%clk 0:00:04]}  Ne3 {[%clk 0:00:10]} 40. Ra4 {[%clk 0:00:03]}  Rd1+ {[%clk 0:00:07]} 41. Kh2 {[%clk 0:00:03]}  Rd3 {[%clk 0:00:08]} 42. Be5 {[%clk 0:00:02]}  Rd2 {[%clk 0:00:08]} 43. Kg3 {[%clk 0:00:02]}  g6 {[%clk 0:00:03]} 44. Rxa6 {[%clk 0:00:02]}  Rxg2+ {[%clk 0:00:03]} 45. Kf4 {[%clk 0:00:02]}  Nd5# {[%clk 0:00:04]} 0-1


[Site "https://www.chess.com"]

[Event "Titled Tuesday Blitz October 18 Late 2022"]
[White "Wiegmann, Sascha"]
[Black "Vusatiuk, Vladimir"]
[WhiteFideId "4682041"]
[BlackFideId "14118610"]
[WhiteElo "2283"]
[BlackElo "2208"]
[Result "0-1"]
[Round "03"]
[TimeControl "180+1"]
[Date "2022.10.19"]
[WhiteClock "0:00:06"]
[BlackClock "0:00:08"]

1. Nf3 {[%clk 0:03:00]}  Nf6 {[%clk 0:03:00]} 2. g3 {[%clk 0:03:00]}  g6 {[%clk 0:03:00]} 3. Bg2 {[%clk 0:03:01]}  Bg7 {[%clk 0:03:00]} 4. O-O {[%clk 0:03:01]}  O-O {[%clk 0:03:01]} 5. d3 {[%clk 0:03:02]}  d5 {[%clk 0:03:01]} 6. Nbd2 {[%clk 0:03:02]}  c5 {[%clk 0:03:01]} 7. e4 {[%clk 0:03:02]}  dxe4 {[%clk 0:03:01]} 8. dxe4 {[%clk 0:03:03]}  Nc6 {[%clk 0:03:02]} 9. c3 {[%clk 0:03:01]}  b6 {[%clk 0:02:56]} 10. Re1 {[%clk 0:03:00]}  e6 {[%clk 0:02:55]} 11. e5 {[%clk 0:02:17]}  Nd5 {[%clk 0:02:52]} 12. h4 {[%clk 0:02:15]}  Qc7 {[%clk 0:02:43]} 13. Qe2 {[%clk 0:02:11]}  h6 {[%clk 0:02:21]} 14. Nf1 {[%clk 0:02:08]}  a5 {[%clk 0:02:17]} 15. N1h2 {[%clk 0:02:07]}  Ba6 {[%clk 0:02:16]} 16. Qe4 {[%clk 0:02:07]}  Rad8 {[%clk 0:02:09]} 17. Ng4 {[%clk 0:02:06]}  h5 {[%clk 0:02:08]} 18. Nh6+ {[%clk 0:01:34]}  Kh8 {[%clk 0:02:07]} 19. g4 {[%clk 0:01:32]}  hxg4 {[%clk 0:01:47]} 20. Nxg4 {[%clk 0:01:26]}  Nde7 {[%clk 0:01:22]} 21. Bg5 {[%clk 0:01:08]}  Bd3 {[%clk 0:01:19]} 22. Qf4 {[%clk 0:01:08]}  Bf5 {[%clk 0:01:09]} 23. Nf6 {[%clk 0:00:55]}  Nd5 {[%clk 0:00:58]} 24. Qg3 {[%clk 0:00:37]}  Bxf6 {[%clk 0:00:54]} 25. Bxf6+ {[%clk 0:00:34]}  Nxf6 {[%clk 0:00:54]} 26. exf6 {[%clk 0:00:35]}  Qxg3 {[%clk 0:00:54]} 27. fxg3 {[%clk 0:00:36]}  Rd6 {[%clk 0:00:40]} 28. Rad1 {[%clk 0:00:34]}  Rfd8 {[%clk 0:00:39]} 29. Rxd6 {[%clk 0:00:34]}  Rxd6 {[%clk 0:00:40]} 30. Kf2 {[%clk 0:00:34]}  e5 {[%clk 0:00:28]} 31. Ng5 {[%clk 0:00:19]}  Rxf6 {[%clk 0:00:19]} 32. Ke3 {[%clk 0:00:18]}  Kg7 {[%clk 0:00:16]} 33. Rd1 {[%clk 0:00:17]}  a4 {[%clk 0:00:15]} 34. g4 {[%clk 0:00:09]}  Bxg4 {[%clk 0:00:13]} 35. Rd2 {[%clk 0:00:10]}  Na5 {[%clk 0:00:13]} 36. Bd5 {[%clk 0:00:09]}  Be6 {[%clk 0:00:11]} 37. Ne4 {[%clk 0:00:08]}  Bxd5 {[%clk 0:00:08]} 38. Rxd5 {[%clk 0:00:09]}  Re6 {[%clk 0:00:06]} 39. Kd3 {[%clk 0:00:10]}  f5 {[%clk 0:00:06]} 40. Ng5 {[%clk 0:00:10]}  Re7 {[%clk 0:00:06]} 41. Rd6 {[%clk 0:00:10]}  f4 {[%clk 0:00:05]} 42. Ke4 {[%clk 0:00:09]}  Nc4 {[%clk 0:00:06]} 43. Rc6 {[%clk 0:00:08]}  Nd2+ {[%clk 0:00:06]} 44. Kd3 {[%clk 0:00:07]}  Nf1 {[%clk 0:00:04]} 45. Ne4 {[%clk 0:00:06]}  Ng3 {[%clk 0:00:04]} 46. Nd6 {[%clk 0:00:03]}  e4+ {[%clk 0:00:04]} 47. Kd2 {[%clk 0:00:02]}  e3+ {[%clk 0:00:05]} 48. Ke1 {[%clk 0:00:03]}  f3 {[%clk 0:00:05]} 49. Ne8+ {[%clk 0:00:02]}  Rxe8 {[%clk 0:00:05]} 50. Kd1 {[%clk 0:00:02]}  e2+ {[%clk 0:00:05]} 51. Kc2 {[%clk 0:00:03]}  e1=Q {[%clk 0:00:05]} 52. Rc7+ {[%clk 0:00:03]}  Re7 {[%clk 0:00:05]} 53. Rxe7+ {[%clk 0:00:03]}  Qxe7 {[%clk 0:00:06]} 54. b3 {[%clk 0:00:03]}  f2 {[%clk 0:00:07]} 55. bxa4 {[%clk 0:00:03]}  f1=Q {[%clk 0:00:08]} 56. Kb3 {[%clk 0:00:04]}  Qe6+ {[%clk 0:00:08]} 57. c4 {[%clk 0:00:05]}  Qfxc4+ {[%clk 0:00:08]} 58. Ka3 {[%clk 0:00:06]}  Qee2 {[%clk 0:00:07]} 59. a5 {[%clk 0:00:06]}  Qexa2# {[%clk 0:00:08]} 0-1


[Site "https://www.chess.com"]

[Event "Titled Tuesday Blitz October 18 Late 2022"]
[White "Zierk, Steven"]
[Black "Storey, Charles H"]
[WhiteFideId "2034255"]
[BlackFideId "406686"]
[WhiteElo "2494"]
[BlackElo "2252"]
[Result "1-0"]
[Round "03"]
[TimeControl "180+1"]
[Date "2022.10.18"]
[WhiteClock "0:00:03"]
[BlackClock "0:00:02"]

1. e4 {[%clk 0:03:00]}  g6 {[%clk 0:02:58]} 2. d4 {[%clk 0:02:59]}  Bg7 {[%clk 0:02:59]} 3. Nc3 {[%clk 0:02:59]}  c5 {[%clk 0:02:59]} 4. dxc5 {[%clk 0:02:58]}  Bxc3+ {[%clk 0:02:59]} 5. bxc3 {[%clk 0:02:58]}  Nf6 {[%clk 0:03:00]} 6. Bd3 {[%clk 0:02:30]}  Qa5 {[%clk 0:02:59]} 7. Ne2 {[%clk 0:02:29]}  Qxc5 {[%clk 0:02:58]} 8. Be3 {[%clk 0:02:28]}  Qa5 {[%clk 0:02:58]} 9. O-O {[%clk 0:02:27]}  Nc6 {[%clk 0:02:59]} 10. h3 {[%clk 0:02:23]}  b6 {[%clk 0:02:51]} 11. f4 {[%clk 0:02:20]}  Bb7 {[%clk 0:02:41]} 12. e5 {[%clk 0:02:11]}  Nd5 {[%clk 0:02:35]} 13. Bd2 {[%clk 0:01:55]}  Qc5+ {[%clk 0:02:35]} 14. Rf2 {[%clk 0:01:51]}  Ne3 {[%clk 0:02:14]} 15. Qc1 {[%clk 0:01:44]}  Nxg2 {[%clk 0:01:57]} 16. Kxg2 {[%clk 0:01:39]}  Nxe5+ {[%clk 0:01:57]} 17. Kf1 {[%clk 0:01:38]}  Nxd3 {[%clk 0:01:51]} 18. cxd3 {[%clk 0:01:39]}  Qf5 {[%clk 0:01:50]} 19. Rh2 {[%clk 0:01:28]}  Qxd3 {[%clk 0:01:49]} 20. Be3 {[%clk 0:01:28]}  Rc8 {[%clk 0:01:34]} 21. Qd2 {[%clk 0:01:26]}  Qe4 {[%clk 0:01:20]} 22. Bd4 {[%clk 0:01:11]}  f6 {[%clk 0:01:07]} 23. Ng1 {[%clk 0:00:58]}  Ba6+ {[%clk 0:00:37]} 24. Kf2 {[%clk 0:00:58]}  Qd3 {[%clk 0:00:37]} 25. Qe1 {[%clk 0:00:46]}  Kf7 {[%clk 0:00:25]} 26. Rd1 {[%clk 0:00:45]}  Qc4 {[%clk 0:00:22]} 27. Kg3 {[%clk 0:00:43]}  d6 {[%clk 0:00:20]} 28. Nf3 {[%clk 0:00:34]}  Rhe8 {[%clk 0:00:19]} 29. h4 {[%clk 0:00:29]}  e5 {[%clk 0:00:18]} 30. fxe5 {[%clk 0:00:29]}  dxe5 {[%clk 0:00:19]} 31. Bxe5 {[%clk 0:00:25]}  fxe5 {[%clk 0:00:17]} 32. Nxe5+ {[%clk 0:00:24]}  Rxe5 {[%clk 0:00:17]} 33. Qxe5 {[%clk 0:00:24]}  Qc7 {[%clk 0:00:12]} 34. Rf2+ {[%clk 0:00:20]}  Kg8 {[%clk 0:00:11]} 35. Qxc7 {[%clk 0:00:16]}  Rxc7 {[%clk 0:00:12]} 36. Rf3 {[%clk 0:00:16]}  Bb7 {[%clk 0:00:11]} 37. Rfd3 {[%clk 0:00:15]}  Bc6 {[%clk 0:00:10]} 38. h5 {[%clk 0:00:12]}  Kg7 {[%clk 0:00:10]} 39. Kh4 {[%clk 0:00:10]}  gxh5 {[%clk 0:00:10]} 40. Rg1+ {[%clk 0:00:09]}  Kf6 {[%clk 0:00:10]} 41. Rd6+ {[%clk 0:00:09]}  Ke5 {[%clk 0:00:10]} 42. Rh6 {[%clk 0:00:10]}  Be4 {[%clk 0:00:08]} 43. Rxh5+ {[%clk 0:00:10]}  Kf4 {[%clk 0:00:08]} 44. Rg4+ {[%clk 0:00:09]}  Kf3 {[%clk 0:00:08]} 45. Re5 {[%clk 0:00:09]}  Rc4 {[%clk 0:00:08]} 46. a3 {[%clk 0:00:08]}  a5 {[%clk 0:00:07]} 47. Re6 {[%clk 0:00:04]}  b5 {[%clk 0:00:06]} 48. Re5 {[%clk 0:00:05]}  b4 {[%clk 0:00:05]} 49. cxb4 {[%clk 0:00:04]}  axb4 {[%clk 0:00:06]} 50. axb4 {[%clk 0:00:04]}  Rxb4 {[%clk 0:00:07]} 51. Ra5 {[%clk 0:00:04]}  Rc4 {[%clk 0:00:06]} 52. Ra3+ {[%clk 0:00:04]}  Kf2 {[%clk 0:00:06]} 53. Rf4+ {[%clk 0:00:04]}  Ke2 {[%clk 0:00:06]} 54. Kg3 {[%clk 0:00:05]}  Bd3 {[%clk 0:00:04]} 55. Rf2+ {[%clk 0:00:05]}  Kd1 {[%clk 0:00:02]} 56. Rxd3+ {[%clk 0:00:04]}  Kc1 {[%clk 0:00:02]} 57. Ra3 {[%clk 0:00:03]}  Rc5 {[%clk 0:00:02]} 58. Ra1# {[%clk 0:00:03]} 1-0


[Site "https://www.chess.com"]

[Event "Titled Tuesday Blitz October 18 Late 2022"]
[White "Zochowski, Kacper"]
[Black "Shapiro, Daniel"]
[WhiteFideId "1125494"]
[BlackFideId "2001780"]
[WhiteElo "2292"]
[BlackElo "2211"]
[Result "1-0"]
[Round "03"]
[TimeControl "180+1"]
[Date "2022.10.19"]
[WhiteClock "0:00:25"]
[BlackClock "0:00:07"]

1. Nf3 {[%clk 0:02:58]}  Nf6 {[%clk 0:02:59]} 2. c4 {[%clk 0:02:58]}  Nc6 {[%clk 0:02:54]} 3. d4 {[%clk 0:02:57]}  e6 {[%clk 0:02:55]} 4. Nc3 {[%clk 0:02:57]}  Bb4 {[%clk 0:02:54]} 5. Bg5 {[%clk 0:02:52]}  h6 {[%clk 0:02:52]} 6. Bxf6 {[%clk 0:02:51]}  Qxf6 {[%clk 0:02:51]} 7. e3 {[%clk 0:02:52]}  b6 {[%clk 0:02:46]} 8. Be2 {[%clk 0:02:47]}  Bb7 {[%clk 0:02:46]} 9. O-O {[%clk 0:02:48]}  O-O {[%clk 0:02:46]} 10. Qc2 {[%clk 0:02:47]}  Rfe8 {[%clk 0:02:42]} 11. a3 {[%clk 0:02:48]}  Bf8 {[%clk 0:02:41]} 12. b4 {[%clk 0:02:48]}  Ne7 {[%clk 0:02:22]} 13. Rfd1 {[%clk 0:02:42]}  Ng6 {[%clk 0:02:15]} 14. d5 {[%clk 0:02:36]}  d6 {[%clk 0:02:05]} 15. Nd4 {[%clk 0:02:27]}  Ne7 {[%clk 0:01:46]} 16. Ndb5 {[%clk 0:02:19]}  Rec8 {[%clk 0:01:44]} 17. Bf3 {[%clk 0:02:17]}  a6 {[%clk 0:01:40]} 18. Nd4 {[%clk 0:02:15]}  c6 {[%clk 0:01:30]} 19. dxe6 {[%clk 0:01:37]}  fxe6 {[%clk 0:01:25]} 20. Bg4 {[%clk 0:01:29]}  e5 {[%clk 0:01:05]} 21. Bxc8 {[%clk 0:01:27]}  Bxc8 {[%clk 0:01:05]} 22. Nf3 {[%clk 0:01:25]}  Be6 {[%clk 0:01:03]} 23. Rxd6 {[%clk 0:01:17]}  Nf5 {[%clk 0:00:52]} 24. Rxc6 {[%clk 0:01:16]}  e4 {[%clk 0:00:52]} 25. Qxe4 {[%clk 0:01:05]}  Re8 {[%clk 0:00:52]} 26. Rc1 {[%clk 0:00:59]}  Nd6 {[%clk 0:00:43]} 27. Qd4 {[%clk 0:00:56]}  Nxc4 {[%clk 0:00:38]} 28. Qxf6 {[%clk 0:00:53]}  gxf6 {[%clk 0:00:38]} 29. Nd4 {[%clk 0:00:51]}  Bf7 {[%clk 0:00:38]} 30. Rxf6 {[%clk 0:00:48]}  Bg7 {[%clk 0:00:33]} 31. Rc6 {[%clk 0:00:44]}  Nxa3 {[%clk 0:00:31]} 32. Rxb6 {[%clk 0:00:41]}  Bc4 {[%clk 0:00:30]} 33. h3 {[%clk 0:00:39]}  Rd8 {[%clk 0:00:26]} 34. Nf5 {[%clk 0:00:37]}  Be5 {[%clk 0:00:22]} 35. Nxh6+ {[%clk 0:00:36]}  Kf8 {[%clk 0:00:21]} 36. Ng4 {[%clk 0:00:27]}  Bc7 {[%clk 0:00:18]} 37. Rc6 {[%clk 0:00:27]}  Bb8 {[%clk 0:00:18]} 38. Ne4 {[%clk 0:00:25]}  Bb5 {[%clk 0:00:12]} 39. Rh6 {[%clk 0:00:24]}  Kg7 {[%clk 0:00:11]} 40. Ng5 {[%clk 0:00:23]}  Be2 {[%clk 0:00:09]} 41. Ne6+ {[%clk 0:00:23]}  Kf7 {[%clk 0:00:08]} 42. Nxd8+ {[%clk 0:00:24]}  Kg7 {[%clk 0:00:08]} 43. Nc6 {[%clk 0:00:24]}  Bxg4 {[%clk 0:00:06]} 44. hxg4 {[%clk 0:00:24]}  Kxh6 {[%clk 0:00:07]} 45. Nxb8 {[%clk 0:00:25]} 1-0


[Site "https://www.chess.com"]

[Event "Titled Tuesday Blitz October 18 Late 2022"]
[White "Adewumi, Tanitoluwa"]
[Black "Matinian, Nikita"]
[WhiteFideId "30966396"]
[BlackFideId "24129100"]
[WhiteElo "2540"]
[BlackElo "2721"]
[Result "0-1"]
[Round "04"]
[TimeControl "180+1"]
[Date "2022.10.19"]
[WhiteClock "0:00:08"]
[BlackClock "0:01:03"]

1. e4 {[%clk 0:02:49]}  e5 {[%clk 0:02:58]} 2. Nf3 {[%clk 0:02:41]}  Nc6 {[%clk 0:02:58]} 3. Nc3 {[%clk 0:02:39]}  Bb4 {[%clk 0:02:57]} 4. Bb5 {[%clk 0:02:37]}  Nf6 {[%clk 0:02:55]} 5. O-O {[%clk 0:02:32]}  O-O {[%clk 0:02:54]} 6. Re1 {[%clk 0:02:25]}  Re8 {[%clk 0:02:46]} 7. d3 {[%clk 0:02:21]}  a6 {[%clk 0:02:44]} 8. Bxc6 {[%clk 0:02:16]}  dxc6 {[%clk 0:02:45]} 9. Ne2 {[%clk 0:02:15]}  a5 {[%clk 0:02:43]} 10. Ng3 {[%clk 0:02:15]}  a4 {[%clk 0:02:43]} 11. a3 {[%clk 0:02:14]}  Bf8 {[%clk 0:02:43]} 12. h3 {[%clk 0:02:02]}  c5 {[%clk 0:02:38]} 13. Nh4 {[%clk 0:01:54]}  g6 {[%clk 0:02:21]} 14. f4 {[%clk 0:01:36]}  Nxe4 {[%clk 0:01:39]} 15. Nxe4 {[%clk 0:01:30]}  Qxh4 {[%clk 0:01:38]} 16. f5 {[%clk 0:01:29]}  f6 {[%clk 0:01:23]} 17. Qf3 {[%clk 0:00:49]}  Bxf5 {[%clk 0:01:19]} 18. g3 {[%clk 0:00:28]}  Bxe4 {[%clk 0:01:15]} 19. Rxe4 {[%clk 0:00:23]}  Qxh3 {[%clk 0:01:09]} 20. Rh4 {[%clk 0:00:19]}  Qe6 {[%clk 0:01:07]} 21. Be3 {[%clk 0:00:19]}  b6 {[%clk 0:01:06]} 22. Kg2 {[%clk 0:00:17]}  Bg7 {[%clk 0:01:03]} 23. Rah1 {[%clk 0:00:16]}  h5 {[%clk 0:01:04]} 24. g4 {[%clk 0:00:14]}  e4 {[%clk 0:01:04]} 25. dxe4 {[%clk 0:00:09]}  Qxe4 {[%clk 0:01:05]} 26. gxh5 {[%clk 0:00:08]}  Qxe3 {[%clk 0:01:03]} 27. Qd5+ {[%clk 0:00:08]}  Qe6 {[%clk 0:01:03]} 0-1


[Site "https://www.chess.com"]

[Event "Titled Tuesday Blitz October 18 Late 2022"]
[White "Alexikov, Alexander"]
[Black "Sailer, Mike"]
[WhiteFideId "14103958"]
[BlackFideId "2012901"]
[WhiteElo "2222"]
[BlackElo "2109"]
[Result "1/2-1/2"]
[Round "04"]
[TimeControl "180+1"]
[Date "2022.10.19"]
[WhiteClock "0:00:52"]
[BlackClock "0:00:11"]

1. e4 {[%clk 0:03:00]}  d5 {[%clk 0:02:59]} 2. exd5 {[%clk 0:02:59]}  Qxd5 {[%clk 0:02:59]} 3. Nc3 {[%clk 0:02:59]}  Qd6 {[%clk 0:03:00]} 4. d4 {[%clk 0:02:59]}  Nf6 {[%clk 0:03:01]} 5. g3 {[%clk 0:02:59]}  c6 {[%clk 0:03:00]} 6. Bg2 {[%clk 0:02:59]}  Bf5 {[%clk 0:03:01]} 7. Nge2 {[%clk 0:02:55]}  e6 {[%clk 0:03:01]} 8. O-O {[%clk 0:02:54]}  Be7 {[%clk 0:03:01]} 9. Bf4 {[%clk 0:02:53]}  Qd8 {[%clk 0:03:01]} 10. h3 {[%clk 0:02:49]}  h6 {[%clk 0:03:02]} 11. g4 {[%clk 0:02:46]}  Bh7 {[%clk 0:03:02]} 12. Qd2 {[%clk 0:02:30]}  O-O {[%clk 0:03:00]} 13. Rad1 {[%clk 0:02:28]}  Nbd7 {[%clk 0:03:00]} 14. Ng3 {[%clk 0:02:22]}  Nb6 {[%clk 0:02:56]} 15. Nce4 {[%clk 0:02:12]}  Nxe4 {[%clk 0:02:51]} 16. Nxe4 {[%clk 0:02:09]}  Nd5 {[%clk 0:02:52]} 17. Bh2 {[%clk 0:02:05]}  Nf6 {[%clk 0:02:49]} 18. Qe2 {[%clk 0:01:54]}  Nxe4 {[%clk 0:02:46]} 19. Bxe4 {[%clk 0:01:54]}  Bxe4 {[%clk 0:02:46]} 20. Qxe4 {[%clk 0:01:53]}  Bd6 {[%clk 0:02:47]} 21. Be5 {[%clk 0:01:52]}  Qc7 {[%clk 0:02:31]} 22. f4 {[%clk 0:01:41]}  Rad8 {[%clk 0:02:30]} 23. b3 {[%clk 0:01:33]}  Bxe5 {[%clk 0:02:20]} 24. dxe5 {[%clk 0:01:31]}  Rd5 {[%clk 0:02:18]} 25. c4 {[%clk 0:01:30]}  Rxd1 {[%clk 0:02:16]} 26. Rxd1 {[%clk 0:01:29]}  Rd8 {[%clk 0:02:15]} 27. Rxd8+ {[%clk 0:01:24]}  Qxd8 {[%clk 0:02:15]} 28. Qe3 {[%clk 0:01:24]}  Qd1+ {[%clk 0:02:10]} 29. Kg2 {[%clk 0:01:24]}  Qc2+ {[%clk 0:01:59]} 30. Qf2 {[%clk 0:01:23]}  Qxf2+ {[%clk 0:01:53]} 31. Kxf2 {[%clk 0:01:22]}  Kf8 {[%clk 0:01:12]} 32. Ke3 {[%clk 0:01:22]}  c5 {[%clk 0:01:05]} 33. a3 {[%clk 0:01:17]}  a5 {[%clk 0:00:58]} 34. Kd3 {[%clk 0:01:16]}  Ke7 {[%clk 0:00:55]} 35. Kc3 {[%clk 0:01:15]}  Kd7 {[%clk 0:00:53]} 36. b4 {[%clk 0:01:13]}  cxb4+ {[%clk 0:00:45]} 37. axb4 {[%clk 0:01:12]}  b6 {[%clk 0:00:37]} 38. Kb3 {[%clk 0:01:08]}  Kc6 {[%clk 0:00:35]} 39. Ka4 {[%clk 0:01:08]}  axb4 {[%clk 0:00:31]} 40. Kxb4 {[%clk 0:01:07]}  g6 {[%clk 0:00:12]} 41. h4 {[%clk 0:00:58]}  h5 {[%clk 0:00:10]} 42. g5 {[%clk 0:00:57]}  Kc7 {[%clk 0:00:09]} 43. Kb5 {[%clk 0:00:56]}  Kb7 {[%clk 0:00:09]} 44. c5 {[%clk 0:00:55]}  bxc5 {[%clk 0:00:10]} 45. Kxc5 {[%clk 0:00:55]}  Kc7 {[%clk 0:00:10]} 46. Kb5 {[%clk 0:00:55]}  Kd7 {[%clk 0:00:09]} 47. Kb6 {[%clk 0:00:55]}  Kd8 {[%clk 0:00:09]} 48. Kc6 {[%clk 0:00:52]}  Kc8 {[%clk 0:00:09]} 49. Kd6 {[%clk 0:00:52]}  Kd8 {[%clk 0:00:09]} 50. Kc6 {[%clk 0:00:52]}  Kc8 {[%clk 0:00:10]} 51. Kd6 {[%clk 0:00:52]}  Kd8 {[%clk 0:00:11]} 52. Kc6 {[%clk 0:00:52]} 1/2-1/2


[Site "https://www.chess.com"]

[Event "Titled Tuesday Blitz October 18 Late 2022"]
[White "Amburgy, Ryan"]
[Black "Vusatiuk, Vladimir"]
[WhiteFideId "30924820"]
[BlackFideId "14118610"]
[WhiteElo "2728"]
[BlackElo "2542"]
[Result "1-0"]
[Round "04"]
[TimeControl "180+1"]
[Date "2022.10.19"]
[WhiteClock "0:00:42"]
[BlackClock "0:00:02"]

1. Nf3 {[%clk 0:03:00]}  Nf6 {[%clk 0:03:00]} 2. c4 {[%clk 0:03:01]}  c6 {[%clk 0:02:59]} 3. Nc3 {[%clk 0:03:00]}  d5 {[%clk 0:02:59]} 4. e3 {[%clk 0:03:01]}  g6 {[%clk 0:02:59]} 5. d4 {[%clk 0:03:01]}  Bg7 {[%clk 0:03:00]} 6. Bd3 {[%clk 0:03:02]}  O-O {[%clk 0:02:59]} 7. O-O {[%clk 0:03:02]}  dxc4 {[%clk 0:03:00]} 8. Bxc4 {[%clk 0:03:03]}  b5 {[%clk 0:03:00]} 9. Bb3 {[%clk 0:03:02]}  Bb7 {[%clk 0:03:00]} 10. Qe2 {[%clk 0:02:57]}  Ba6 {[%clk 0:02:10]} 11. Nb1 {[%clk 0:02:54]}  Nd5 {[%clk 0:02:02]} 12. Rd1 {[%clk 0:02:34]}  e6 {[%clk 0:01:45]} 13. e4 {[%clk 0:02:31]}  Nb6 {[%clk 0:01:45]} 14. Bg5 {[%clk 0:02:29]}  Qc7 {[%clk 0:01:28]} 15. Qe3 {[%clk 0:02:16]}  N8d7 {[%clk 0:01:22]} 16. Nc3 {[%clk 0:02:09]}  c5 {[%clk 0:01:16]} 17. d5 {[%clk 0:01:45]}  c4 {[%clk 0:01:09]} 18. dxe6 {[%clk 0:01:45]}  fxe6 {[%clk 0:01:08]} 19. Bc2 {[%clk 0:01:45]}  Nc5 {[%clk 0:01:00]} 20. a3 {[%clk 0:01:28]}  Nb3 {[%clk 0:00:38]} 21. Bxb3 {[%clk 0:01:18]}  cxb3 {[%clk 0:00:39]} 22. Nd2 {[%clk 0:01:09]}  Nc4 {[%clk 0:00:35]} 23. Nxc4 {[%clk 0:01:10]}  bxc4 {[%clk 0:00:36]} 24. Bh4 {[%clk 0:01:09]}  Qf4 {[%clk 0:00:28]} 25. Qh3 {[%clk 0:00:57]}  Bc8 {[%clk 0:00:22]} 26. Be7 {[%clk 0:00:55]}  e5 {[%clk 0:00:17]} 27. Qg3 {[%clk 0:00:52]}  Qxg3 {[%clk 0:00:16]} 28. hxg3 {[%clk 0:00:53]}  Re8 {[%clk 0:00:16]} 29. Bc5 {[%clk 0:00:52]}  Bb7 {[%clk 0:00:16]} 30. Rd7 {[%clk 0:00:51]}  Bc6 {[%clk 0:00:15]} 31. Rc7 {[%clk 0:00:51]}  Rec8 {[%clk 0:00:15]} 32. Rxc8+ {[%clk 0:00:52]}  Rxc8 {[%clk 0:00:16]} 33. Rd1 {[%clk 0:00:50]}  Bh6 {[%clk 0:00:16]} 34. Bxa7 {[%clk 0:00:48]}  Bg5 {[%clk 0:00:12]} 35. Bb6 {[%clk 0:00:46]}  h5 {[%clk 0:00:12]} 36. a4 {[%clk 0:00:45]}  Ra8 {[%clk 0:00:09]} 37. a5 {[%clk 0:00:45]}  Be7 {[%clk 0:00:08]} 38. Nd5 {[%clk 0:00:42]}  Bxd5 {[%clk 0:00:08]} 39. exd5 {[%clk 0:00:42]}  Bb4 {[%clk 0:00:08]} 40. d6 {[%clk 0:00:42]}  c3 {[%clk 0:00:02]} 41. bxc3 {[%clk 0:00:41]}  Bxa5 {[%clk 0:00:02]} 42. Bxa5 {[%clk 0:00:41]}  Rxa5 {[%clk 0:00:02]} 43. d7 {[%clk 0:00:42]} 1-0


[Site "https://www.chess.com"]